bitfinex/quotes_SOLUSD_20250815
["timestamp","ask_amount","ask_price","bid_price","bid_amount"]
[1755271745315,30.0,186.25,186.24,0.06]
[1755271745510,30.0,186.25,186.24,31.72643849]
[1755271745714,30.0,186.25,186.24,31.66643849]
[1755271746235,30.0,186.25,186.24,48.28666141]
[1755271746425,0.68,186.37,186.25,15.10621557]
[1755271746624,0.68,186.37,186.35,16.56022292]
[1755271746952,45.94,186.36,186.34,16.56022292]
[1755271747148,3.40339106,186.42,186.31,5.36716294]
[1755271747149,0.68,186.43,186.35,16.56022292]
[1755271747310,0.68,186.46,186.42,16.56022292]
[1755271747507,7.25562098,186.48,186.45,16.56022292]
[1755271747712,0.68,186.49,186.47,16.56022292]
[1755271748032,0.68,186.49,186.4,16.56022292]
[1755271748033,0.68,186.52,186.48,16.56022292]
[1755271748333,45.92,186.56,186.51,16.56022292]
[1755271748536,45.92,186.56,186.49,0.06]
[1755271748718,45.92,186.56,186.55,16.56022292]
[1755271749234,51.96027979,186.56,186.49,16.56022292]
[1755271749437,0.68,186.55,186.41,0.06]
[1755271749640,0.68,186.55,186.34,20.033959]
[1755271749641,26.0,186.53,186.35,18.84186208]
[1755271749817,16.56022292,186.45,186.37,15.10621557]
[1755271750012,45.9,186.44,186.35,5.36624631]
[1755271750339,4.10080386,186.43,186.33,16.56022292]
[1755271750538,17.24022292,186.42,186.36,16.56022292]
[1755271750720,0.68,186.46,186.41,16.56022292]
[1755271751039,46.6,186.45,186.37,15.10621557]
[1755271751220,16.56022292,186.43,186.34,15.10621557]
[1755271751406,0.68,186.44,186.37,16.56022292]
[1755271751607,3.42777293,186.44,186.42,16.56022292]
[1755271751912,49.30777293,186.46,186.41,16.56022292]
[1755271752113,3.4285049,186.45,186.37,15.10621557]
[1755271752421,45.88,186.46,186.36,16.56022292]
[1755271752422,4.1085049,186.44,186.36,16.56022292]
[1755271752625,45.88,186.46,186.33,16.56022292]
[1755271752626,16.56022292,186.39,186.33,16.56022292]
[1755271752849,51.20505732,186.4,186.34,16.56022292]
[1755271753013,4.2860478,186.47,186.39,16.56022292]
[1755271753014,0.68,186.47,186.39,16.56022292]
[1755271753213,3.43385115,186.46,186.38,0.06]
[1755271753416,3.43385115,186.45,186.38,0.06]
[1755271753617,45.8,186.48,186.44,16.56022292]
[1755271753818,3.44102769,186.47,186.46,16.56022292]
[1755271754133,0.06,186.5,186.46,16.56022292]
[1755271754337,3.44193433,186.49,186.46,16.56022292]
[1755271754652,3.44193433,186.49,186.4,15.10621557]
[1755271754653,4.12193433,186.48,186.4,15.10621557]
[1755271754945,25.36502557,186.47,186.41,16.56022292]
[1755271755133,16.56022292,186.45,186.4,16.56022292]
[1755271755310,3.44193433,186.44,186.41,16.56022292]
[1755271755515,3.44193433,186.43,186.4,16.56022292]
[1755271755819,3.44193433,186.42,186.4,16.56022292]
[1755271756029,3.44193433,186.41,186.36,20.47216865]
[1755271756231,3.44790971,186.4,186.35,31.36617324]
[1755271756540,3.44790971,186.4,186.29,45.66]
[1755271756541,3.44790971,186.39,186.34,15.16621557]
[1755271756732,0.66,186.44,186.35,0.06]
[1755271756733,4.2860478,186.44,186.35,0.06]
[1755271756936,3.45144007,186.43,186.35,0.06]
[1755271757130,3.45144007,186.42,186.35,0.06]
[1755271757333,3.45144007,186.41,186.35,0.06]
[1755271757540,3.45144007,186.4,186.38,15.10621557]
[1755271757724,45.64,186.44,186.4,15.10621557]
[1755271757927,4.2860478,186.47,186.43,16.56022292]
[1755271758119,3.45489248,186.46,186.4,15.10621557]
[1755271758450,3.45489248,186.45,186.4,15.10621557]
[1755271758635,3.45489248,186.44,186.4,15.10621557]
[1755271758827,3.45489248,186.43,186.39,26.0]
[1755271759027,3.45489248,186.42,186.36,15.10621557]
[1755271759240,3.45489248,186.41,186.33,5.362226]
[1755271759441,4.2860478,186.39,186.33,5.362226]
[1755271759653,7.74094028,186.38,186.36,16.56022292]
[1755271759856,7.74094028,186.38,186.32,5.3670878]
[1755271759857,3.45489248,186.37,186.32,15.10621557]
[1755271760062,3.45489248,186.36,186.32,15.10621557]
[1755271760242,4.2860478,186.4,186.35,16.56022292]
[1755271760437,4.2860478,186.4,186.33,15.16621557]
[1755271760438,4.32852459,186.4,186.39,16.56022292]
[1755271760745,4.1228593,186.4,186.33,15.10621557]
[1755271760932,7.79111855,186.39,186.37,16.56022292]
[1755271761131,3.4628593,186.38,186.37,16.56022292]
[1755271762030,3.4628593,186.38,186.32,26.0]
[1755271762235,3.4628593,186.37,186.33,15.10621557]
[1755271762432,3.4628593,186.37,186.35,16.56022292]
[1755271762433,3.46553854,186.36,186.35,16.56022292]
[1755271762636,3.46553854,186.36,186.34,16.56022292]
[1755271762858,3.46553854,186.35,186.34,16.56022292]
[1755271764142,3.46553854,186.35,186.31,20.47359863]
[1755271764465,3.4687763,186.34,186.3,26.0]
[1755271764778,20.88848217,186.37,186.22,38.71]
[1755271764941,0.66,186.34,186.25,20.47534308]
[1755271765275,3.46815652,186.33,186.31,16.56022292]
[1755271765572,3.46815652,186.32,186.25,20.47534308]
[1755271765868,4.32825925,186.38,186.3,15.10621557]
[1755271766164,3.46886073,186.37,186.3,15.16621557]
[1755271766364,4.32825925,186.44,186.33,15.10621557]
[1755271766547,3.47074776,186.43,186.34,0.06]
[1755271766865,0.72,186.48,186.42,16.56022292]
[1755271767168,16.56022292,186.43,186.29,18.78791131]
[1755271767336,16.56022292,186.43,186.32,16.56022292]
[1755271767337,49.29196529,186.42,186.32,16.56022292]
[1755271767540,4.13196529,186.41,186.29,18.78791131]
[1755271767845,5.36509469,186.39,186.29,26.0]
[1755271768045,3.47196529,186.38,186.31,15.10621557]
[1755271768376,3.47196529,186.37,186.3,15.10621557]
[1755271768673,0.66,186.38,186.33,16.56022292]
[1755271768846,20.69159506,186.37,186.31,16.56022292]
[1755271769040,3.47097619,186.36,186.29,5.36797466]
[1755271769259,3.47097619,186.35,186.32,16.56022292]
[1755271769458,4.13097619,186.36,186.32,16.56022292]
[1755271769637,3.47097619,186.36,186.29,5.36797466]
[1755271769841,4.13097619,186.39,186.35,16.56022292]
[1755271770040,3.47097619,186.41,186.37,16.56022292]
[1755271770276,4.13097619,186.4,186.37,16.56022292]
[1755271770443,0.66,186.39,186.36,16.56022292]
[1755271770779,0.66,186.46,186.38,16.56022292]
[1755271770967,0.66,186.46,186.44,16.56022292]
[1755271771176,0.66,186.46,186.38,15.10621557]
[1755271771361,0.66,186.46,186.43,16.56022292]
[1755271771561,0.66,186.45,186.35,26.0]
[1755271771878,0.66,186.45,186.4,16.56022292]
[1755271771879,6.02340264,186.45,186.4,16.56022292]
[1755271772085,17.22022292,186.44,186.38,16.56022292]
[1755271772368,3.4730643,186.47,186.43,16.56022292]
[1755271772369,0.66,186.47,186.43,16.56022292]
[1755271772558,0.66,186.47,186.44,16.56022292]
[1755271772869,131.9,186.46,186.44,16.56022292]
[1755271773372,131.9,186.46,186.4,15.10621557]
[1755271773577,131.9,186.46,186.44,16.56022292]
[1755271773753,0.66,186.45,186.41,16.56022292]
[1755271773947,0.66,186.44,186.37,5.36567044]
[1755271774148,16.56022292,186.4,186.34,16.56022292]
[1755271774354,17.22022292,186.39,186.33,16.56022292]
[1755271774562,0.66,186.39,186.33,16.56022292]
[1755271774764,0.66,186.39,186.27,0.06]
[1755271774765,0.66,186.39,186.34,16.56022292]
[1755271774965,0.66,186.38,186.29,15.10621557]
[1755271775164,0.66,186.38,186.28,15.10621557]
[1755271775165,17.22022292,186.38,186.28,15.10621557]
[1755271775478,5.36567044,186.37,186.33,16.56022292]
[1755271775653,0.66,186.37,186.34,16.56022292]
[1755271776181,0.5,186.38,186.35,16.56022292]
[1755271776382,1.16,186.38,186.35,16.56022292]
[1755271776563,6.5253886,186.38,186.35,16.56022292]
[1755271776744,0.66,186.37,186.35,16.56022292]
[1755271776951,0.66,186.36,186.26,5.36883925]
[1755271777149,16.56022292,186.35,186.3,16.56022292]
[1755271777350,0.66,186.34,186.3,16.56022292]
[1755271777851,6.02593206,186.37,186.32,16.56022292]
[1755271778048,46.18,186.37,186.33,16.56022292]
[1755271778568,45.52,186.37,186.33,16.56022292]
[1755271778759,0.66,186.36,186.29,15.10621557]
[1755271778950,0.66,186.36,186.33,16.56022292]
[1755271779351,67.44595326,186.37,186.29,15.10621557]
[1755271779546,0.66,186.35,186.3,15.10621557]
[1755271779776,0.66,186.35,186.32,16.56022292]
[1755271779971,51.5457398,186.37,186.3,15.10621557]
[1755271780172,46.18,186.37,186.34,16.56022292]
[1755271780652,0.5,186.36,186.3,15.10621557]
[1755271780861,0.5,186.36,186.34,16.56022292]
[1755271781280,0.5,186.36,186.35,16.56022292]
[1755271781481,0.66,186.42,186.35,37.0326848]
[1755271781780,45.38,186.43,186.41,16.56022292]
[1755271782087,0.72,186.45,186.36,15.10621557]
[1755271782382,0.72,186.45,186.43,16.56022292]
[1755271782583,0.66,186.44,186.43,16.56022292]
[1755271782787,0.66,186.44,186.4,16.56022292]
[1755271783082,0.66,186.44,186.36,15.10621557]
[1755271783283,0.66,186.44,186.41,16.56022292]
[1755271783485,0.06,186.45,186.42,16.56022292]
[1755271783666,0.06,186.45,186.37,5.36567044]
[1755271783982,0.66,186.44,186.37,5.36567044]
[1755271784157,0.66,186.44,186.41,16.56022292]
[1755271784357,0.66,186.44,186.37,5.36567044]
[1755271784580,0.66,186.44,186.41,16.56022292]
[1755271784881,0.06,186.45,186.43,16.56022292]
[1755271785095,0.06,186.45,186.38,15.16621557]
[1755271785255,0.06,186.45,186.43,16.56022292]
[1755271785456,0.06,186.45,186.42,16.56022292]
[1755271785678,0.5,186.44,186.42,16.56022292]
[1755271785861,0.5,186.44,186.43,16.56022292]
[1755271786768,1.15,186.44,186.35,20.47246188]
[1755271787087,1.15,186.44,186.36,15.10621557]
[1755271787383,0.5,186.44,186.43,16.56022292]
[1755271787693,1.15,186.44,186.35,13.41561577]
[1755271787861,1.15,186.44,186.36,20.47217393]
[1755271788061,6.5137879,186.44,186.4,16.56022292]
[1755271788385,0.65,186.43,186.33,20.47303787]
[1755271788594,16.56022292,186.41,186.35,16.56022292]
[1755271788790,45.04,186.42,186.34,16.56022292]
[1755271788791,16.56022292,186.39,186.34,16.56022292]
[1755271789095,0.65,186.38,186.34,16.56022292]
[1755271789258,0.65,186.37,186.26,5.36883925]
[1755271789462,21.92704522,186.33,186.24,5.3694158]
[1755271789772,0.65,186.34,186.25,0.06]
[1755271789973,0.65,186.34,186.25,15.10621557]
[1755271790173,0.65,186.34,186.29,16.56022292]
[1755271790375,0.65,186.34,186.25,15.10621557]
[1755271790571,0.65,186.34,186.3,16.56022292]
[1755271790888,0.65,186.34,186.25,15.10621557]
[1755271790889,0.65,186.33,186.25,15.10621557]
[1755271791195,0.65,186.36,186.25,15.10621557]
[1755271791363,46.21,186.36,186.25,15.16621557]
[1755271791691,0.65,186.41,186.27,41.10621557]
[1755271791867,16.56022292,186.37,186.32,16.56022292]
[1755271792179,45.76,186.4,186.27,41.10621557]
[1755271792180,0.65,186.36,186.27,15.10621557]
[1755271792385,16.56022292,186.33,186.28,16.56022292]
[1755271792568,16.56022292,186.33,186.24,46.4753588]
[1755271792769,0.65,186.32,186.24,46.4753588]
[1755271793012,0.65,186.32,186.28,16.56022292]
[1755271793197,0.65,186.32,186.24,46.4753588]
[1755271793368,16.56022292,186.31,186.24,15.10621557]
[1755271793568,0.65,186.32,186.28,16.56022292]
[1755271793872,45.8,186.34,186.29,16.56022292]
[1755271794076,46.45,186.34,186.24,5.4294158]
[1755271794275,46.45,186.34,186.29,16.56022292]
[1755271794495,46.45,186.34,186.25,15.10621557]
[1755271794675,46.45,186.34,186.3,16.56022292]
[1755271794876,5.30748647,186.39,186.33,16.56022292]
[1755271795081,46.55,186.4,186.3,0.06]
[1755271795282,20.04956896,186.39,186.3,0.06]
[1755271795500,46.55,186.4,186.29,15.10621557]
[1755271795801,45.9,186.4,186.33,15.10621557]
[1755271795966,45.98,186.45,186.37,15.10621557]
[1755271796568,0.65,186.44,186.33,26.06]
[1755271796785,4.14035263,186.44,186.36,16.56022292]
[1755271796990,16.56022292,186.41,186.33,26.0]
[1755271797209,0.65,186.4,186.33,26.0]
[1755271797377,0.5,186.43,186.39,16.56022292]
[1755271797585,0.5,186.43,186.34,0.06]
[1755271797586,0.06,186.45,186.42,31.66643849]
[1755271797795,0.06,186.45,186.44,16.56022292]
[1755271797983,0.06,186.45,186.43,15.10621557]
[1755271798312,0.06,186.45,186.41,31.36451907]
[1755271798472,0.06,186.45,186.43,16.56022292]
[1755271798778,0.06,186.45,186.4,15.10621557]
[1755271798779,0.06,186.45,186.38,5.36536967]
[1755271798977,0.65,186.44,186.37,26.0]
[1755271799173,17.21022292,186.44,186.38,16.56022292]
[1755271799384,0.65,186.44,186.41,16.56022292]
[1755271799605,0.65,186.44,186.38,5.36526158]
[1755271799913,0.65,186.44,186.4,16.56022292]
[1755271800223,0.65,186.43,186.36,20.47213387]
[1755271800379,0.06,186.45,186.42,16.56022292]
[1755271800584,0.65,186.44,186.36,46.47213387]
[1755271800815,0.65,186.44,186.4,16.56022292]
[1755271801029,0.06,186.45,186.43,16.56022292]
[1755271801174,0.06,186.45,186.44,17.0965885]
[1755271801380,0.06,186.47,186.46,41.10621557]
[1755271801684,0.06,186.47,186.46,63.02951904]
[1755271801892,0.06,186.5,186.47,15.10621557]
[1755271802225,13.39487356,186.64,186.47,15.10621557]
[1755271802226,1e-08,186.53,186.49,41.10621557]
[1755271802399,1e-08,186.53,186.52,31.66643849]
[1755271802715,0.44694695,186.67,186.59,26.0]
[1755271803048,0.65,186.72,186.61,31.66643849]
[1755271803195,0.2,186.64,186.63,26.0]
[1755271803518,0.06,186.73,186.65,31.35762121]
[1755271803810,0.06,186.73,186.72,16.56022292]
[1755271805747,0.06,186.73,186.72,21.9158356]
[1755271805909,0.06,186.77,186.75,26.0]
[1755271806225,0.06,186.77,186.76,31.66643849]
[1755271806424,0.06,186.77,186.76,15.10621557]
[1755271806631,0.06,186.77,186.75,16.56022292]
[1755271806829,0.06,186.77,186.76,16.56022292]
[1755271807039,0.06,186.77,186.76,31.66643849]
[1755271807419,0.06,186.77,186.72,5.35561268]
[1755271807601,0.71,186.77,186.74,16.56022292]
[1755271807805,0.06,186.75,186.7,26.0]
[1755271808002,0.06,186.73,186.71,16.56022292]
[1755271808229,0.06,186.73,186.72,48.22666141]
[1755271808433,0.06,186.77,186.72,48.22666141]
[1755271808434,0.06,186.77,186.76,41.10621557]
[1755271808636,0.65,186.89,186.81,15.10621557]
[1755271808940,0.2,186.92,186.88,16.56022292]
[1755271809106,0.2,186.92,186.83,15.10621557]
[1755271809439,0.2,186.92,186.91,16.56022292]
[1755271809940,0.2,186.92,186.91,31.66643849]
[1755271810613,0.06,186.97,186.95,41.10621557]
[1755271810812,0.06,186.97,186.91,26.0]
[1755271811029,0.65,186.96,186.87,5.35131374]
[1755271811209,0.65,186.96,186.86,15.10621557]
[1755271811535,5.3490238,186.95,186.87,16.56022292]
[1755271811844,16.56022292,186.93,186.87,16.56022292]
[1755271812021,16.56022292,186.89,186.83,16.56022292]
[1755271812222,16.56022292,186.89,186.77,51.59417893]
[1755271812223,0.65,186.89,186.84,16.56022292]
[1755271812443,0.65,186.93,186.88,16.56022292]
[1755271812750,21.96869011,186.97,186.87,26.0]
[1755271812920,0.65,186.92,186.84,5.349024]
[1755271813115,16.56022292,186.9,186.78,15.10621557]
[1755271813320,16.56022292,186.85,186.74,5.35503909]
[1755271813544,0.65,186.84,186.76,5.408468]
[1755271813717,16.56022292,186.81,186.75,16.56022292]
[1755271813919,5.35180083,186.86,186.7,18.74665237]
[1755271814120,0.65,186.88,186.85,16.56022292]
[1755271814320,0.65,186.88,186.86,16.56022292]
[1755271814527,0.65,186.91,186.87,16.56022292]
[1755271814741,0.65,186.91,186.78,0.53538922]
[1755271814742,0.65,186.9,186.78,0.53538922]
[1755271815046,0.65,186.9,186.8,15.10621557]
[1755271815234,0.65,186.9,186.89,16.56022292]
[1755271815570,0.72,186.9,186.89,16.56022292]
[1755271815741,0.72,186.9,186.85,5.35172273]
[1755271815911,26.0,186.96,186.8,5.35306]
[1755271815912,0.72,186.89,186.8,5.35306]
[1755271816115,0.72,186.89,186.88,16.56022292]
[1755271816332,0.06,186.97,186.88,16.56022292]
[1755271816540,0.78,186.97,186.84,15.64143286]
[1755271816750,22.68874368,186.97,186.9,16.56022292]
[1755271816945,16.56022292,186.92,186.82,15.10621557]
[1755271817240,0.72,186.93,186.89,16.56022292]
[1755271817445,16.56022292,186.91,186.85,16.56022292]
[1755271817651,0.72,186.9,186.84,5.35216129]
[1755271817827,0.72,186.9,186.77,13.385401]
[1755271818030,16.56022292,186.84,186.78,16.56022292]
[1755271818248,17.28022292,186.83,186.78,16.56022292]
[1755271818550,0.72,186.88,186.82,16.56022292]
[1755271818719,25.16621557,186.97,186.76,18.74062968]
[1755271818720,16.56022292,186.93,186.79,15.10621557]
[1755271818924,0.72,186.89,186.86,16.56022292]
[1755271819155,0.72,186.91,186.87,16.56022292]
[1755271819340,42.56022292,186.93,186.85,16.56022292]
[1755271819341,0.72,186.89,186.85,16.56022292]
[1755271819659,16.56022292,186.87,186.81,16.56022292]
[1755271819825,16.56022292,186.82,186.71,5.35589952]
[1755271820028,17.28022292,186.81,186.75,16.56022292]
[1755271820336,16.56022292,186.79,186.73,16.56022292]
[1755271820519,17.28022292,186.78,186.73,16.56022292]
[1755271820719,0.72,186.77,186.74,16.56022292]
[1755271820945,0.72,186.81,186.76,16.56022292]
[1755271821250,0.72,186.8,186.76,16.56022292]
[1755271821451,16.56022292,186.83,186.78,16.56022292]
[1755271821747,16.56022292,186.79,186.66,13.39267074]
[1755271821949,16.56022292,186.75,186.69,16.56022292]
[1755271822128,0.72,186.75,186.66,5.35732328]
[1755271822325,16.56022292,186.69,186.62,5.35848247]
[1755271822532,16.56022292,186.68,186.63,16.56022292]
[1755271822721,0.72,186.67,186.62,16.56022292]
[1755271822922,0.72,186.67,186.63,16.56022292]
[1755271823128,26.0,186.73,186.56,13.4004605]
[1755271823129,16.56022292,186.66,186.56,13.4004605]
[1755271823453,0.72,186.7,186.65,16.56022292]
[1755271823650,6.07552057,186.73,186.59,15.10621557]
[1755271823838,0.72,186.73,186.7,16.56022292]
[1755271824156,0.72,186.72,186.7,16.56022292]
[1755271824649,46.4,186.78,186.71,16.56022292]
[1755271824852,46.4,186.78,186.74,16.56022292]
[1755271825036,46.4,186.78,186.77,16.56022292]
[1755271825240,0.72,186.79,186.76,16.56022292]
[1755271825436,0.72,186.78,186.72,16.56022292]
[1755271825639,16.56022292,186.76,186.71,16.56022292]
[1755271825935,0.72,186.75,186.7,16.56022292]
[1755271826132,0.72,186.75,186.72,16.56022292]
[1755271826445,17.28022292,186.75,186.69,16.56022292]
[1755271826651,0.72,186.78,186.73,16.56022292]
[1755271826832,26.0,186.8,186.65,44.75167425]
[1755271826833,16.56022292,186.74,186.68,16.56022292]
[1755271827037,0.72,186.73,186.69,16.56022292]
[1755271827225,0.72,186.73,186.71,16.56022292]
[1755271827428,16.56022292,186.76,186.65,31.35762121]
[1755271827429,0.72,186.76,186.7,16.56022292]
[1755271827628,16.56022292,186.71,186.63,0.03]
[1755271827861,16.56022292,186.66,186.63,0.03]
[1755271828042,6.07618639,186.7,186.63,0.03]
[1755271828355,16.56022292,186.64,186.63,0.03]
[1755271828735,17.28022292,186.64,186.63,0.03]
[1755271828937,17.28022292,186.64,186.61,0.03]
[1755271829138,0.72,186.63,186.61,0.03]
[1755271829663,0.72,186.67,186.62,16.56022292]
[1755271829833,17.28022292,186.66,186.61,0.03]
[1755271830031,17.28022292,186.69,186.63,16.56022292]
[1755271830361,0.72,186.69,186.62,16.56022292]
[1755271830536,0.72,186.69,186.63,16.56022292]
[1755271830730,0.72,186.69,186.61,0.03]
[1755271830731,16.56022292,186.67,186.61,0.03]
[1755271831060,0.72,186.66,186.61,0.03]
[1755271831250,0.72,186.65,186.61,16.59022292]
[1755271831437,16.56022292,186.66,186.61,0.03]
[1755271831636,16.56022292,186.62,186.61,0.03]
[1755271831941,21.91870539,186.62,186.59,0.03]
[1755271832148,16.56022292,186.6,186.59,0.03]
[1755271832536,0.72,186.66,186.59,16.59022292]
[1755271832755,16.56022292,186.65,186.6,16.56022292]
[1755271832964,17.28022292,186.64,186.59,0.03]
[1755271833130,16.56022292,186.6,186.59,0.03]
[1755271833661,0.72,186.62,186.59,0.03]
[1755271833828,16.56022292,186.64,186.59,0.03]
[1755271833829,17.28022292,186.6,186.59,0.03]
[1755271834055,0.72,186.66,186.59,16.59022292]
[1755271834265,16.56022292,186.63,186.59,0.03]
[1755271834433,0.72,186.62,186.59,0.03]
[1755271834635,16.56022292,186.6,186.59,0.03]
[1755271834858,16.56022292,186.61,186.59,0.03]
[1755271835034,0.72,186.66,186.6,16.56022292]
[1755271835233,16.56022292,186.68,186.62,16.56022292]
[1755271835740,45.98,186.68,186.62,16.56022292]
[1755271835940,45.98,186.68,186.63,16.56022292]
[1755271836148,45.98,186.68,186.6,5.35882726]
[1755271836149,0.72,186.67,186.6,5.35882726]
[1755271836349,0.72,186.67,186.59,0.03]
[1755271836557,0.72,186.67,186.61,16.56022292]
[1755271836737,17.28022292,186.67,186.61,16.56022292]
[1755271836956,17.28022292,186.67,186.62,16.56022292]
[1755271837143,17.28022292,186.66,186.6,16.56022292]
[1755271837338,16.56022292,186.65,186.59,21.94952304]
[1755271837563,0.72,186.66,186.62,16.56022292]
[1755271837765,16.56022292,186.68,186.63,21.91834925]
[1755271838089,16.56022292,186.65,186.59,5.38932106]
[1755271838373,0.72,186.67,186.62,16.56022292]
[1755271838552,10.0,186.77,186.59,5.38932106]
[1755271838553,0.72,186.71,186.66,16.56022292]
[1755271838739,0.72,186.71,186.6,16.56022292]
[1755271838740,0.72,186.7,186.6,16.56022292]
[1755271839072,16.56022292,186.67,186.61,16.56022292]
[1755271839254,16.56022292,186.66,186.6,16.56022292]
[1755271839443,26.0,186.69,186.59,5.38932106]
[1755271839444,17.28022292,186.65,186.59,5.38932106]
[1755271839644,17.28022292,186.65,186.6,16.56022292]
[1755271839963,17.28022292,186.64,186.59,16.59022292]
[1755271840163,45.8,186.65,186.6,16.56022292]
[1755271840363,17.28022292,186.64,186.59,16.59022292]
[1755271840560,16.56022292,186.64,186.59,0.03]
[1755271840862,0.72,186.66,186.6,16.56022292]
[1755271841067,0.72,186.66,186.62,16.56022292]
[1755271841276,71.78,186.68,186.6,16.56022292]
[1755271841456,17.28022292,186.65,186.6,16.56022292]
[1755271841633,17.28022292,186.64,186.59,0.03]
[1755271841842,16.56022292,186.62,186.59,0.03]
[1755271842041,16.56022292,186.6,186.57,0.03]
[1755271842359,16.56022292,186.58,186.47,16.56022292]
[1755271842552,16.56022292,186.52,186.46,21.92330347]
[1755271842748,0.72,186.53,186.46,21.92330347]
[1755271842970,16.56022292,186.54,186.48,16.56022292]
[1755271843166,45.82,186.55,186.46,5.36308055]
[1755271843167,16.56022292,186.53,186.46,5.36308055]
[1755271843374,16.56022292,186.49,186.4,18.89680703]
[1755271843668,16.56022292,186.5,186.41,41.10621557]
[1755271843871,16.56022292,186.51,186.45,16.56022292]
[1755271844170,0.72,186.52,186.42,18.77480956]
[1755271844171,16.56022292,186.49,186.44,16.56022292]
[1755271844371,16.56022292,186.49,186.42,5.3642313]
[1755271844574,16.56022292,186.46,186.39,5.36509469]
[1755271844753,17.28022292,186.49,186.43,16.56022292]
[1755271844953,16.56022292,186.5,186.44,16.56022292]
[1755271845152,16.56022292,186.49,186.43,16.56022292]
[1755271845545,0.71,186.51,186.43,16.56022292]
[1755271845747,45.76,186.52,186.5,16.56022292]
[1755271845979,45.76,186.52,186.47,5.36253933]
[1755271846181,46.47,186.52,186.47,21.92276225]
[1755271846475,0.71,186.51,186.43,16.56022292]
[1755271846652,16.56022292,186.49,186.43,16.56022292]
[1755271847063,16.56022292,186.5,186.44,16.56022292]
[1755271847459,0.71,186.51,186.39,15.13621557]
[1755271847664,17.27022292,186.51,186.45,16.56022292]
[1755271847851,45.76,186.52,186.48,21.92272828]
[1755271848055,45.76,186.52,186.48,5.36250536]
[1755271848270,0.71,186.54,186.49,16.56022292]
[1755271848480,16.56022292,186.56,186.5,16.56022292]
[1755271848678,17.27022292,186.54,186.48,5.36250536]
[1755271848881,17.27022292,186.54,186.47,5.36274471]
[1755271848882,0.71,186.54,186.47,5.36274471]
[1755271849081,45.5,186.56,186.5,16.56022292]
[1755271849292,62.06022292,186.56,186.47,5.36274471]
[1755271849462,46.19,186.57,186.53,16.56022292]
[1755271849659,16.56022292,186.59,186.55,16.56022292]
[1755271849660,45.48,186.59,186.55,16.56022292]
[1755271849989,45.48,186.59,186.55,21.92054175]
[1755271850161,45.48,186.59,186.55,5.36031883]
[1755271850356,45.48,186.59,186.57,16.56022292]
[1755271850580,45.48,186.59,186.58,1.56022292]
[1755271850795,7.65709992,186.63,186.57,16.56022292]
[1755271850796,24.21732284,186.63,186.57,16.56022292]
[1755271851077,7.65709992,186.63,186.55,18.76155174]
[1755271851285,24.21732284,186.63,186.57,16.56022292]
[1755271851584,24.21732284,186.63,186.55,18.76155174]
[1755271851782,7.65709992,186.63,186.59,16.56022292]
[1755271851987,7.65709992,186.63,186.6,5.3590568]
[1755271852156,7.65709992,186.63,186.56,5.36020583]
[1755271852366,24.21732284,186.63,186.58,16.56022292]
[1755271852558,7.65709992,186.63,186.56,5.36020583]
[1755271852880,16.56022292,186.57,186.45,15.22621557]
[1755271853132,16.56022292,186.56,186.51,16.56022292]
[1755271853261,0.71,186.57,186.52,16.56022292]
[1755271853983,16.56022292,186.55,186.49,5.36221781]
[1755271854283,16.56022292,186.54,186.48,16.56022292]
[1755271854487,16.56022292,186.51,186.46,21.92330347]
[1755271854695,16.56022292,186.51,186.43,15.22621557]
[1755271854864,17.27022292,186.5,186.44,21.92387878]
[1755271855181,45.2,186.52,186.44,5.36365586]
[1755271855378,45.18,186.52,186.44,5.36365586]
[1755271855769,45.18,186.52,186.47,16.56022292]
[1755271855967,45.18,186.52,186.47,21.92291844]
[1755271856181,45.18,186.52,186.49,16.56022292]
[1755271856375,45.18,186.52,186.47,5.36269552]
[1755271856559,45.18,186.52,186.48,16.56022292]
[1755271856760,45.18,186.52,186.49,16.56022292]
[1755271856975,0.71,186.61,186.52,15.10621557]
[1755271857202,6.94709992,186.63,186.52,15.10621557]